[Event "21è Open International d'Echecs de Menton"]
[Site "Menton, France"]
[Date "2024.10.29"]
[Round "3.3"]
[White "Paul, RABETTE 2043"]
[Black "David, LACAN-RUS 2257"]
[Result "1/2-1/2"]
[TimeControl "90'+30''/40m + 30'+30''"]
[BlackTitle "FM"]
[WhiteFideId "45162638"]
[BlackFideId "651023075"]
[WhiteElo "2043"]
[BlackElo "2257"]

1. d4 {[%clk 01:22:38]} {[%emt 00:08:21]} d5 {[%clk 01:30:24]} {[%emt
00:00:36]} 2. c4 {[%clk 01:23:01]} {[%emt 00:00:07]} e6 {[%clk 01:30:49]}
{[%emt 00:00:05]} 3. Nc3 {[%clk 01:23:24]} {[%emt 00:00:06]} Nf6 {[%clk
01:31:13]} {[%emt 00:00:06]} 4. Bg5 {[%clk 01:23:50]} {[%emt 00:00:04]} Bb4
{[%clk 01:31:25]} {[%emt 00:00:18]} 5. Nf3 {[%clk 01:23:42]} {[%emt 00:00:38]}
Nbd7 {[%clk 01:31:41]} {[%emt 00:00:15]} 6. cxd5 {[%clk 01:23:31]} {[%emt
00:00:41]} exd5 {[%clk 01:32:04]} {[%emt 00:00:07]} 7. e3 {[%clk 01:23:43]}
{[%emt 00:00:17]} c5 {[%clk 01:32:27]} {[%emt 00:00:08]} 8. Be2 {[%clk
01:21:21]} {[%emt 00:02:55]} Qa5 {[%clk 01:32:45]} {[%emt 00:00:09]} 9. Bxf6
{[%clk 01:20:00]} {[%emt 00:01:51]} Nxf6 {[%clk 01:32:48]} {[%emt 00:00:26]} 10.
O-O {[%clk 01:19:38]} {[%emt 00:00:50]} c4 {[%clk 01:22:28]} {[%emt 00:10:52]}
11. Qc2 {[%clk 01:11:04]} {[%emt 00:09:04]} O-O {[%clk 01:22:33]} {[%emt
00:00:25]} 12. Nd2 {[%clk 01:09:46]} {[%emt 00:01:49]} Re8 {[%clk 01:15:27]}
{[%emt 00:07:36]} 13. Bf3 {[%clk 01:08:17]} {[%emt 00:01:58]} Bd7 {[%clk
01:12:25]} {[%emt 00:03:32]} 14. Rfe1 {[%clk 01:06:21]} {[%emt 00:02:26]} Bc6
{[%clk 01:01:11]} {[%emt 00:11:43]} 15. Rac1 {[%clk 00:58:49]} {[%emt
00:08:03]} Rad8 {[%clk 00:54:17]} {[%emt 00:07:25]} 16. e4 {[%clk 00:53:33]}
{[%emt 00:05:46]} b5 {[%clk 00:45:36]} {[%emt 00:09:11]} 17. exd5 {[%clk
00:45:08]} {[%emt 00:08:55]} Bxc3 {[%clk 00:39:01]} {[%emt 00:07:05]} 18. bxc3
{[%clk 00:36:42]} {[%emt 00:08:54]} Bxd5 {[%clk 00:38:41]} {[%emt 00:00:52]} 19.
Re5 {[%clk 00:33:24]} {[%emt 00:03:48]} Bxf3 {[%clk 00:35:15]} {[%emt
00:03:56]} 20. Nxf3 {[%clk 00:32:45]} {[%emt 00:01:08]} Nd5 {[%clk 00:35:08]}
{[%emt 00:00:37]} 21. Qe4 {[%clk 00:19:00]} {[%emt 00:14:15]} Rxe5 {[%clk
00:26:31]} {[%emt 00:09:08]} 22. Nxe5 {[%clk 00:19:19]} {[%emt 00:00:10]} Qxa2
{[%clk 00:26:06]} {[%emt 00:00:55]} 23. Qf5 {[%clk 00:14:40]} {[%emt 00:05:08]}
Nf6 {[%clk 00:24:26]} {[%emt 00:02:11]} 24. Nc6 {[%clk 00:13:46]} {[%emt
00:01:24]} Re8 {[%clk 00:19:51]} {[%emt 00:05:04]} 25. Qxb5 {[%clk 00:12:37]}
{[%emt 00:01:40]} Qd2 {[%clk 00:19:07]} {[%emt 00:01:13]} 26. Rf1 {[%clk
00:12:16]} {[%emt 00:00:52]} Qxc3 {[%clk 00:18:52]} {[%emt 00:00:46]} 27. Qc5
{[%clk 00:10:30]} {[%emt 00:02:13]} Ne4 {[%clk 00:06:30]} {[%emt 00:12:54]} 28.
Ne7+ {[%clk 00:09:27]} {[%emt 00:01:34]} Kf8 {[%clk 00:03:29]} {[%emt
00:03:31]} 29. Ng6+ {[%clk 00:09:53]} {[%emt 00:00:04]} Kg8 {[%clk 00:03:54]}
{[%emt 00:00:05]} 30. Ne7+ {[%clk 00:10:21]} {[%emt 00:00:03]} Kh8 {[%clk
00:02:41]} {[%emt 00:01:44]} 31. Qc6 {[%clk 00:10:45]} {[%emt 00:00:05]} Nf6
{[%clk 00:02:13]} {[%emt 00:00:58]} 32. Nd5 {[%clk 00:11:04]} {[%emt 00:00:11]}
Qe1 {[%clk 00:02:23]} {[%emt 00:00:21]} 33. Nxf6 {[%clk 00:09:15]} {[%emt
00:02:19]} gxf6 {[%clk 00:02:51]} {[%emt 00:00:02]} 34. Qxf6+ {[%clk 00:08:42]}
{[%emt 00:01:02]} Kg8 {[%clk 00:03:18]} {[%emt 00:00:03]} 35. Qg5+ {[%clk
00:08:57]} {[%emt 00:00:15]} Kh8 {[%clk 00:03:41]} {[%emt 00:00:07]} 36. Qf6+
{[%clk 00:07:28]} {[%emt 00:01:59]} Kg8 {[%clk 00:04:11]} 37. Qg5+ {[%clk
00:07:52]} {[%emt 00:00:07]} Kh8 {[%clk 00:04:31]} {[%emt 00:00:10]} 1/2-1/2

[Event "21è Open International d'Echecs de Menton"]
[Site "Menton, France"]
[Date "2024.10.29"]
[Round "4.1"]
[White "Paolo, FORMENTO 2346"]
[Black "Jean-Marc, DEGRAEVE 2479"]
[Result "1/2-1/2"]
[TimeControl "90'+30''/40m + 30'+30''"]
[WhiteTitle "FM"]
[BlackTitle "GM"]
[WhiteFideId "861162"]
[BlackFideId "600270"]
[WhiteElo "2346"]
[BlackElo "2479"]

1. d4 {[%clk 01:19:44]} {[%emt 00:11:14]} Nf6 {[%clk 01:30:41]} {[%emt
00:00:20]} 2. c4 {[%clk 01:20:09]} {[%emt 00:00:06]} g6 {[%clk 01:30:57]}
{[%emt 00:00:13]} 3. Nc3 {[%clk 01:20:16]} {[%emt 00:00:23]} Bg7 {[%clk
01:31:21]} {[%emt 00:00:06]} 4. e4 {[%clk 01:20:26]} {[%emt 00:00:21]} d6
{[%clk 01:31:45]} {[%emt 00:00:06]} 5. h3 {[%clk 01:20:39]} {[%emt 00:00:16]}
Nbd7 {[%clk 01:29:24]} {[%emt 00:02:51]} 6. Be3 {[%clk 01:20:18]} {[%emt
00:00:51]} e5 {[%clk 01:28:21]} {[%emt 00:01:33]} 7. d5 {[%clk 01:19:07]}
{[%emt 00:01:41]} Nc5 {[%clk 01:28:39]} {[%emt 00:00:12]} 8. Qc2 {[%clk
01:18:42]} {[%emt 00:00:55]} O-O {[%clk 01:26:35]} {[%emt 00:02:34]} 9. Nf3
{[%clk 01:12:54]} {[%emt 00:06:18]} a5 {[%clk 01:24:04]} {[%emt 00:03:01]} 10.
O-O-O {[%clk 01:00:47]} {[%emt 00:12:37]} Nh5 {[%clk 01:17:52]} {[%emt
00:06:41]} 11. Nd2 {[%clk 00:51:37]} {[%emt 00:09:40]} f5 {[%clk 01:09:45]}
{[%emt 00:08:37]} 12. exf5 {[%clk 00:43:26]} {[%emt 00:08:42]} gxf5 {[%clk
01:09:23]} {[%emt 00:00:52]} 13. g3 {[%emt 00:07:49]} Na6 {[%emt 00:07:56]} 14.
Rg1 {[%emt 00:13:24]} b6 {[%emt 00:04:39]} 15. a3 {[%clk 00:30:11]} {[%emt
00:00:06]} Nc5 {[%clk 00:50:33]} {[%emt 00:01:09]} 16. Be2 {[%clk 00:29:22]}
{[%emt 00:01:20]} Qe8 {[%clk 00:50:16]} {[%emt 00:00:47]} 17. Nb5 {[%clk
00:18:41]} {[%emt 00:11:11]} Na6 {[%clk 00:49:51]} {[%emt 00:00:55]} 18. g4
{[%clk 00:17:30]} {[%emt 00:01:41]} Nf4 {[%clk 00:49:52]} {[%emt 00:00:28]} 19.
Bxf4 {[%clk 00:17:32]} {[%emt 00:00:29]} exf4 {[%clk 00:50:11]} {[%emt
00:00:11]} 20. Bd3 {[%clk 00:17:13]} {[%emt 00:00:49]} Qf7 {[%clk 00:49:10]}
{[%emt 00:01:31]} 1/2-1/2

[Event "21è Open International d'Echecs de Menton"]
[Site "Menton, France"]
[Date "2024.10.29"]
[Round "4.2"]
[White "David, LACAN-RUS 2257"]
[Black "Matteo, RATIER-FONTANA 2146"]
[Result "1-0"]
[TimeControl "90'+30''/40m + 30'+30''"]
[WhiteTitle "FM"]
[WhiteFideId "651023075"]
[BlackFideId "36035319"]
[WhiteElo "2257"]
[BlackElo "2146"]

1. d4 {[%clk 01:30:58]} {[%emt 00:00:03]} Nf6 {[%clk 01:21:22]} {[%emt
00:09:37]} 2. c4 {[%clk 01:31:26]} {[%emt 00:00:02]} b6 {[%clk 01:19:33]}
{[%emt 00:02:19]} 3. Nc3 {[%clk 01:30:45]} {[%emt 00:01:10]} Bb7 {[%clk
01:19:54]} {[%emt 00:00:10]} 4. f3 {[%clk 01:29:07]} {[%emt 00:02:08]} d5
{[%clk 01:19:52]} {[%emt 00:00:32]} 5. cxd5 {[%emt 00:01:00]} Nxd5 {[%clk
01:20:17]} 6. e4 {[%clk 01:28:29]} {[%emt 00:00:42]} Nxc3 {[%clk 01:20:43]}
{[%emt 00:00:05]} 7. bxc3 {[%clk 01:28:54]} {[%emt 00:00:05]} e5 {[%clk
01:21:08]} {[%emt 00:00:04]} 8. Be3 {[%clk 01:26:30]} {[%emt 00:02:53]} exd4
{[%clk 01:21:33]} {[%emt 00:00:06]} 9. cxd4 {[%clk 01:26:50]} {[%emt 00:00:10]}
Bb4+ {[%clk 01:21:57]} {[%emt 00:00:06]} 10. Kf2 {[%clk 01:27:07]} {[%emt
00:00:12]} O-O {[%clk 01:22:23]} {[%emt 00:00:05]} 11. g4 {[%clk 01:14:55]}
{[%emt 00:12:41]} c5 {[%clk 01:12:37]} {[%emt 00:10:17]} 12. d5 {[%clk
01:14:17]} {[%emt 00:01:08]} Qh4+ {[%clk 01:06:52]} {[%emt 00:06:16]} 13. Kg2
{[%clk 01:13:59]} {[%emt 00:00:48]} Nd7 {[%clk 01:06:32]} {[%emt 00:00:51]} 14.
Ne2 {[%clk 01:09:25]} {[%emt 00:05:03]} f5 {[%clk 01:02:54]} {[%emt 00:04:08]}
15. gxf5 {[%clk 01:07:47]} {[%emt 00:02:08]} g6 {[%clk 00:59:29]} {[%emt
00:03:56]} 16. Rg1 {[%clk 00:59:06]} {[%emt 00:09:10]} Ne5 {[%clk 00:54:33]}
{[%emt 00:05:26]} 17. Nf4 {[%clk 00:48:22]} {[%emt 00:11:14]} Kh8 {[%clk
00:37:48]} {[%emt 00:17:15]} 18. Ne6 {[%clk 00:40:49]} {[%emt 00:08:03]} gxf5
{[%clk 00:35:55]} {[%emt 00:02:24]} 19. Bg5 {[%clk 00:38:55]} {[%emt 00:02:23]}
Qh5 {[%clk 00:28:07]} {[%emt 00:08:18]} 20. Bf4 {[%clk 00:34:48]} {[%emt
00:04:36]} fxe4 {[%clk 00:22:34]} {[%emt 00:06:04]} 21. fxe4 {[%clk 00:33:28]}
{[%emt 00:01:50]} Ng4 {[%clk 00:22:38]} {[%emt 00:00:25]} 22. Qf3 {[%clk
00:24:22]} {[%emt 00:09:36]} Bd2 {[%clk 00:02:06]} {[%emt 00:21:02]} 23. Nxf8
{[%clk 00:22:30]} {[%emt 00:02:23]} Rxf8 {[%clk 00:02:23]} {[%emt 00:00:13]} 24.
Be5+ {[%clk 00:22:56]} {[%emt 00:00:03]} Kg8 {[%clk 00:02:53]} {[%emt
00:00:01]} 25. Qg3 {[%clk 00:23:08]} {[%emt 00:00:17]} Be3 {[%clk 00:02:08]}
{[%emt 00:01:16]} 26. Bd6 {[%clk 00:12:49]} {[%emt 00:10:48]} Bxd5 {[%clk
00:00:56]} {[%emt 00:01:42]} 27. exd5 {[%clk 00:09:40]} {[%emt 00:03:39]} Qxd5+
{[%clk 00:01:21]} {[%emt 00:00:05]} 28. Kh3 {[%clk 00:10:02]} {[%emt 00:00:08]}
Rf3 {[%clk 00:01:43]} {[%emt 00:00:08]} 29. Bc4 {[%clk 00:10:07]} {[%emt
00:00:25]} Qxc4 {[%clk 00:00:47]} {[%emt 00:01:26]} 30. Qxf3 {[%clk 00:10:22]}
{[%emt 00:00:15]} Bxg1 {[%clk 00:00:49]} {[%emt 00:00:29]} 31. Qf8# {[%clk
00:10:51]} {[%emt 00:00:01]} 1-0

[Event "21è Open International d'Echecs de Menton"]
[Site "Menton, France"]
[Date "2024.10.29"]
[Round "4.3"]
[White "Andrey, YASTREBOV 2020"]
[Black "Florian, JACOBS 2225"]
[Result "1/2-1/2"]
[TimeControl "90'+30''/40m + 30'+30''"]
[WhiteFideId "551041936"]
[BlackFideId "1018329"]
[WhiteElo "2020"]
[BlackElo "2225"]

1. Nf3 {[%clk 01:30:31]} {[%emt 00:00:28]} d5 {[%clk 01:30:54]} {[%emt
00:00:07]} 2. c4 {[%clk 01:30:57]} {[%emt 00:00:04]} e6 {[%clk 01:31:14]}
{[%emt 00:00:09]} 3. g3 {[%clk 01:31:20]} {[%emt 00:00:09]} Nf6 {[%clk
01:31:30]} {[%emt 00:00:13]} 4. Bg2 {[%clk 01:31:39]} {[%emt 00:00:10]} d4
{[%clk 01:31:40]} {[%emt 00:00:20]} 5. b4 {[%clk 01:30:01]} {[%emt 00:02:09]}
c5 {[%clk 01:29:15]} {[%emt 00:02:55]} 6. Bb2 {[%clk 01:27:13]} {[%emt
00:03:17]} a5 {[%clk 01:26:19]} {[%emt 00:03:27]} 7. b5 {[%clk 01:22:37]}
{[%emt 00:05:05]} Bd6 {[%clk 01:25:54]} {[%emt 00:00:55]} 8. d3 {[%clk
01:20:17]} {[%emt 00:02:50]} O-O {[%clk 01:26:05]} {[%emt 00:00:20]} 9. a4
{[%clk 01:19:10]} {[%emt 00:01:37]} e5 {[%clk 01:19:47]} {[%emt 00:06:47]} 10.
Nbd2 {[%clk 01:15:17]} {[%emt 00:04:23]} Ra7 {[%clk 01:19:54]} {[%emt
00:00:24]} 11. e4 {[%clk 01:05:08]} {[%emt 00:10:38]} dxe3 {[%clk 01:02:44]}
{[%emt 00:17:41]} 12. fxe3 {[%clk 01:05:26]} {[%emt 00:00:11]} Re8 {[%clk
01:03:11]} {[%emt 00:00:03]} 13. O-O {[%clk 01:01:24]} {[%emt 00:04:33]} Bg4
{[%clk 00:56:28]} {[%emt 00:07:13]} 14. Qc2 {[%clk 00:59:04]} {[%emt 00:02:49]}
Nbd7 {[%clk 00:53:40]} {[%emt 00:03:18]} 15. Ng5 {[%clk 00:54:56]} {[%emt
00:04:38]} Bh5 {[%clk 00:46:04]} {[%emt 00:08:07]} 16. Nge4 {[%clk 00:51:28]}
{[%emt 00:03:57]} Bf8 {[%clk 00:43:34]} {[%emt 00:02:59]} 17. Nxf6+ {[%clk
00:46:59]} {[%emt 00:04:59]} Nxf6 {[%clk 00:43:53]} {[%emt 00:00:11]} 18. Ne4
{[%clk 00:42:07]} {[%emt 00:05:22]} Nxe4 {[%clk 00:36:49]} {[%emt 00:07:35]} 19.
Bxe4 {[%clk 00:41:12]} {[%emt 00:01:26]} b6 {[%clk 00:36:42]} {[%emt 00:00:38]}
20. Bd5 {[%clk 00:35:59]} {[%emt 00:05:42]} Qg5 {[%clk 00:31:45]} {[%emt
00:05:26]} 21. Rae1 {[%clk 00:35:17]} {[%emt 00:01:12]} Kh8 {[%clk 00:31:42]}
{[%emt 00:00:33]} 22. Qf2 {[%clk 00:34:49]} {[%emt 00:00:58]} f6 {[%clk
00:29:03]} {[%emt 00:03:09]} 23. d4 {[%clk 00:32:03]} {[%emt 00:03:16]} Bd6
{[%clk 00:22:47]} {[%emt 00:06:46]} 24. Bc6 {[%clk 00:31:07]} {[%emt 00:01:26]}
Ree7 {[%clk 00:22:09]} {[%emt 00:01:09]} 25. dxe5 {[%clk 00:28:38]} {[%emt
00:03:00]} Bxe5 {[%clk 00:21:59]} {[%emt 00:00:40]} 26. Qd2 {[%clk 00:26:37]}
{[%emt 00:02:30]} Bc7 {[%clk 00:19:20]} {[%emt 00:03:10]} 27. Qd3 {[%clk
00:22:54]} {[%emt 00:04:12]} Bg6 {[%clk 00:14:04]} {[%emt 00:05:46]} 28. e4
{[%clk 00:23:06]} {[%emt 00:00:18]} h5 {[%clk 00:14:01]} {[%emt 00:00:33]} 29.
Qd5 {[%clk 00:20:55]} {[%emt 00:02:42]} Qxd5 {[%clk 00:09:12]} {[%emt
00:05:20]} 30. Bxd5 {[%clk 00:21:10]} {[%emt 00:00:14]} Be5 {[%clk 00:08:47]}
{[%emt 00:00:55]} 31. Bxe5 {[%clk 00:19:53]} {[%emt 00:01:47]} Rxe5 {[%clk
00:09:11]} {[%emt 00:00:06]} 32. Re3 {[%clk 00:19:23]} {[%emt 00:00:59]} Rae7
{[%clk 00:09:28]} {[%emt 00:00:14]} 33. Rf4 {[%clk 00:16:41]} {[%emt 00:03:11]}
1/2-1/2

[Event "21è Open International d'Echecs de Menton"]
[Site "Menton, France"]
[Date "2024.10.30"]
[Round "5.1"]
[White "Jean-Marc, DEGRAEVE 2479"]
[Black "David, LACAN-RUS 2257"]
[Result "1-0"]
[TimeControl "90'+30''/40m + 30'+30''"]
[WhiteTitle "GM"]
[BlackTitle "FM"]
[WhiteFideId "600270"]
[BlackFideId "651023075"]
[WhiteElo "2479"]
[BlackElo "2257"]

1. e4 {[%clk 01:30:57]} {[%emt 00:00:02]} c5 {[%clk 01:30:53]} {[%emt
00:00:08]} 2. Nf3 {[%clk 01:31:11]} {[%emt 00:00:16]} Nc6 {[%clk 01:31:15]}
{[%emt 00:00:07]} 3. Bb5 {[%clk 01:30:51]} {[%emt 00:00:50]} Nf6 {[%clk
01:31:35]} {[%emt 00:00:09]} 4. Nc3 {[%clk 01:27:34]} {[%emt 00:03:47]} Qc7
{[%clk 01:31:55]} {[%emt 00:00:11]} 5. O-O {[%clk 01:25:26]} {[%emt 00:02:38]}
Nd4 {[%clk 01:32:14]} {[%emt 00:00:11]} 6. Re1 {[%clk 01:24:59]} {[%emt
00:00:57]} a6 {[%clk 01:32:22]} {[%emt 00:00:22]} 7. Bf1 {[%clk 01:23:40]}
{[%emt 00:01:49]} Ng4 {[%clk 01:32:31]} {[%emt 00:00:21]} 8. e5 {[%clk
01:22:04]} {[%emt 00:02:07]} Nxf3+ {[%clk 01:32:32]} {[%emt 00:00:29]} 9. Qxf3
{[%clk 01:22:32]} {[%emt 00:00:02]} Nxe5 {[%clk 01:32:36]} {[%emt 00:00:26]} 10.
Qh5 {[%clk 01:22:44]} {[%emt 00:00:18]} Ng6 {[%clk 01:13:13]} {[%emt 00:19:52]}
11. Nd5 {[%clk 01:17:04]} {[%emt 00:06:10]} Qd6 {[%clk 01:06:47]} {[%emt
00:06:56]} 12. d4 {[%clk 01:16:02]} {[%emt 00:01:33]} cxd4 {[%clk 00:55:21]}
{[%emt 00:11:56]} 13. Bd3 {[%clk 01:07:42]} {[%emt 00:08:50]} b5 {[%clk
00:50:30]} {[%emt 00:05:21]} 14. Be4 {[%clk 01:00:44]} {[%emt 00:07:28]} Bb7
{[%clk 00:37:52]} {[%emt 00:13:08]} 15. Nxe7 {[%clk 00:58:54]} {[%emt
00:02:20]} Bxe7 {[%clk 00:36:29]} {[%emt 00:01:52]} 16. Bxb7 {[%clk 00:59:15]}
{[%emt 00:00:10]} Rb8 {[%clk 00:36:28]} {[%emt 00:00:31]} 17. Be4 {[%clk
00:59:23]} {[%emt 00:00:22]} O-O {[%clk 00:35:40]} {[%emt 00:01:19]} 18. Bd2
{[%clk 00:59:46]} {[%emt 00:00:07]} Bf6 {[%clk 00:30:29]} {[%emt 00:05:40]} 19.
Bd3 {[%clk 00:59:42]} {[%emt 00:00:34]} Rfe8 {[%clk 00:26:58]} {[%emt
00:04:00]} 20. Rxe8+ {[%clk 01:00:04]} {[%emt 00:00:09]} Rxe8 {[%clk 00:27:24]}
{[%emt 00:00:04]} 21. a4 {[%clk 01:00:20]} {[%emt 00:00:14]} bxa4 {[%clk
00:17:01]} {[%emt 00:10:53]} 22. Rxa4 {[%clk 01:00:16]} {[%emt 00:00:34]} Qb8
{[%clk 00:16:50]} {[%emt 00:00:40]} 23. b3 {[%clk 00:59:37]} {[%emt 00:01:09]}
h6 {[%clk 00:10:54]} {[%emt 00:06:27]} 24. Rxa6 {[%clk 00:49:20]} {[%emt
00:10:47]} Bg5 {[%clk 00:09:25]} {[%emt 00:01:58]} 25. Qd1 {[%clk 00:43:22]}
{[%emt 00:06:28]} Bxd2 {[%clk 00:05:47]} {[%emt 00:04:08]} 26. Qxd2 {[%clk
00:43:49]} {[%emt 00:00:03]} Ne5 {[%clk 00:05:49]} {[%emt 00:00:28]} 27. Ra1
{[%clk 00:40:54]} {[%emt 00:03:25]} Nxd3 {[%clk 00:04:27]} {[%emt 00:01:52]} 28.
Qxd3 {[%clk 00:41:22]} {[%emt 00:00:02]} Qb4 {[%clk 00:04:44]} {[%emt
00:00:12]} 29. g3 {[%clk 00:41:44]} {[%emt 00:00:09]} Re1+ {[%clk 00:02:08]}
{[%emt 00:03:05]} 30. Rxe1 {[%clk 00:42:06]} {[%emt 00:00:08]} Qxe1+ {[%clk
00:02:37]} {[%emt 00:00:02]} 31. Kg2 {[%clk 00:42:24]} {[%emt 00:00:12]} Qb4
{[%clk 00:02:44]} {[%emt 00:00:21]} 32. Qc4 {[%clk 00:39:33]} {[%emt 00:03:22]}
Qb7+ {[%clk 00:01:16]} {[%emt 00:01:59]} 33. f3 {[%clk 00:39:47]} {[%emt
00:00:15]} Qb6 {[%clk 00:00:51]} {[%emt 00:00:55]} 34. Kf1 {[%clk 00:37:09]}
{[%emt 00:03:08]} Qf6 {[%clk 00:00:41]} {[%emt 00:00:39]} 35. Kg2 {[%clk
00:35:26]} {[%emt 00:02:13]} Qe5 {[%clk 00:00:39]} {[%emt 00:00:32]} 36. b4
{[%clk 00:35:21]} {[%emt 00:00:35]} g5 {[%clk 00:00:36]} {[%emt 00:00:34]} 37.
g4 {[%clk 00:34:07]} {[%emt 00:01:44]} Qe3 {[%clk 00:00:35]} {[%emt 00:00:31]}
38. Qd3 {[%clk 00:30:51]} {[%emt 00:03:45]} Qe1 {[%clk 00:00:45]} {[%emt
00:00:20]} 39. Qxd4 {[%clk 00:30:47]} {[%emt 00:00:34]} Qe2+ {[%clk 00:00:44]}
{[%emt 00:00:31]} 40. Qf2 {[%clk 00:31:12]} {[%emt 00:00:05]} Qc4 {[%clk
00:01:11]} {[%emt 00:00:03]} 41. Qd2 {[%clk 00:31:30]} {[%emt 00:00:11]} f5
{[%clk 00:23:57]} {[%emt 00:07:44]} 42. gxf5 {[%clk 00:57:23]} {[%emt
00:04:38]} g4 {[%clk 00:24:20]} {[%emt 00:00:07]} 43. Qd3 {[%clk 00:56:34]}
{[%emt 00:01:19]} gxf3+ {[%clk 00:23:18]} {[%emt 00:01:32]} 44. Kxf3 {[%clk
00:56:57]} {[%emt 00:00:07]} Qh4 {[%clk 00:22:54]} {[%emt 00:00:54]} 45. Qd5+
{[%clk 00:51:59]} {[%emt 00:05:27]} Kh8 {[%clk 00:21:31]} {[%emt 00:01:53]} 46.
Qe5+ {[%clk 00:51:51]} {[%emt 00:00:38]} Kh7 {[%clk 00:21:57]} {[%emt
00:00:04]} 47. c3 {[%clk 00:48:07]} {[%emt 00:04:15]} Qh3+ {[%clk 00:18:45]}
{[%emt 00:03:42]} 48. Kf2 {[%clk 00:48:21]} {[%emt 00:00:15]} Qd3 {[%clk
00:18:54]} {[%emt 00:00:22]} 49. Qe7+ {[%clk 00:48:16]} {[%emt 00:00:34]} Kg8
{[%clk 00:18:41]} {[%emt 00:00:43]} 50. Qe8+ {[%clk 00:48:40]} {[%emt
00:00:06]} Kg7 {[%clk 00:19:08]} {[%emt 00:00:03]} 51. Qg6+ {[%clk 00:48:49]}
{[%emt 00:00:20]} 1-0

[Event "21è Open International d'Echecs de Menton"]
[Site "Menton, France"]
[Date "2024.10.30"]
[Round "5.2"]
[White "Savva, SUSTOV 2173"]
[Black "Paolo, FORMENTO 2346"]
[Result "0-1"]
[TimeControl "90'+30''/40m + 30'+30''"]
[BlackTitle "FM"]
[WhiteFideId "13908715"]
[BlackFideId "861162"]
[WhiteElo "2173"]
[BlackElo "2346"]

1. e4 {[%clk 01:30:59]} e6 {[%clk 01:29:29]} {[%emt 00:01:32]} 2. d4 {[%clk
01:31:25]} {[%emt 00:00:05]} d5 {[%clk 01:29:46]} {[%emt 00:00:05]} 3. e5
{[%clk 01:31:50]} {[%emt 00:00:12]} c5 {[%clk 01:30:08]} {[%emt 00:00:08]} 4.
c3 {[%clk 01:32:15]} {[%emt 00:00:05]} Nc6 {[%clk 01:30:33]} {[%emt 00:00:05]}
5. Nf3 {[%clk 01:32:41]} {[%emt 00:00:04]} Bd7 {[%clk 01:30:46]} {[%emt
00:00:16]} 6. a3 {[%clk 01:32:52]} {[%emt 00:00:20]} Nge7 {[%clk 01:30:58]}
{[%emt 00:00:18]} 7. b4 {[%clk 01:32:59]} {[%emt 00:00:23]} cxd4 {[%clk
01:31:16]} {[%emt 00:00:11]} 8. cxd4 {[%clk 01:33:25]} {[%emt 00:00:04]} Nf5
{[%clk 01:31:38]} {[%emt 00:00:08]} 9. Bb2 {[%clk 01:32:45]} {[%emt 00:01:10]}
b5 {[%clk 01:31:34]} {[%emt 00:00:34]} 10. Bxb5 {[%clk 01:20:08]} {[%emt
00:13:07]} Nxe5 {[%clk 01:31:43]} {[%emt 00:00:22]} 11. Bxd7+ {[%clk 01:20:33]}
{[%emt 00:00:05]} Nxd7 {[%clk 01:32:07]} {[%emt 00:00:06]} 12. O-O {[%clk
01:16:33]} {[%emt 00:04:29]} a5 {[%clk 01:19:08]} {[%emt 00:13:29]} 13. bxa5
{[%clk 01:13:11]} {[%emt 00:03:52]} Qxa5 {[%clk 01:17:38]} {[%emt 00:01:59]} 14.
Ne5 {[%clk 01:01:59]} {[%emt 00:11:43]} Qb6 {[%clk 00:52:36]} {[%emt 00:25:31]}
15. Qd2 {[%clk 00:46:27]} {[%emt 00:16:02]} Nxe5 {[%clk 00:45:26]} {[%emt
00:07:40]} 16. dxe5 {[%clk 00:46:50]} {[%emt 00:00:07]} Bc5 {[%clk 00:45:40]}
{[%emt 00:00:16]} 17. Kh1 {[%clk 00:34:53]} {[%emt 00:12:27]} Rb8 {[%clk
00:30:38]} {[%emt 00:15:31]} 18. Bc3 {[%clk 00:25:57]} {[%emt 00:09:27]} O-O
{[%clk 00:29:57]} {[%emt 00:01:10]} 19. h3 {[%clk 00:20:52]} {[%emt 00:05:35]}
Rfc8 {[%clk 00:24:27]} {[%emt 00:06:00]} 20. a4 {[%clk 00:16:10]} {[%emt
00:05:12]} d4 {[%clk 00:12:56]} {[%emt 00:12:01]} 21. Ba5 {[%clk 00:16:05]}
{[%emt 00:00:36]} Qa6 {[%clk 00:12:54]} {[%emt 00:00:32]} 22. Re1 {[%clk
00:13:26]} {[%emt 00:03:09]} Ne7 {[%clk 00:10:00]} {[%emt 00:03:23]} 23. Rc1
{[%clk 00:08:11]} {[%emt 00:05:46]} Ng6 {[%clk 00:08:33]} {[%emt 00:01:57]} 24.
Re1 {[%clk 00:03:31]} {[%emt 00:05:09]} Rb7 {[%clk 00:06:38]} {[%emt 00:02:25]}
25. Ra2 {[%clk 00:01:47]} {[%emt 00:02:14]} Ra8 {[%clk 00:06:17]} {[%emt
00:00:51]} 26. Qc2 {[%clk 00:00:35]} {[%emt 00:01:42]} Qxa5 {[%clk 00:06:26]}
{[%emt 00:00:20]} 27. Qe4 {[%clk 00:00:58]} {[%emt 00:00:08]} Rab8 {[%clk
00:03:39]} {[%emt 00:03:17]} 28. Nd2 {[%clk 00:01:12]} {[%emt 00:00:15]} Ba7
{[%clk 00:02:09]} {[%emt 00:02:01]} 29. f4 {[%clk 00:00:38]} {[%emt 00:01:04]}
Qd5 {[%clk 00:02:19]} {[%emt 00:00:21]} 30. Qxd5 {[%clk 00:00:49]} {[%emt
00:00:19]} exd5 {[%clk 00:02:48]} {[%emt 00:00:01]} 31. f5 {[%clk 00:01:01]}
{[%emt 00:00:18]} Nf4 {[%clk 00:03:06]} {[%emt 00:00:11]} 32. Nf3 {[%clk
00:00:49]} {[%emt 00:00:42]} d3 {[%clk 00:03:21]} {[%emt 00:00:15]} 33. a5
{[%clk 00:00:41]} {[%emt 00:00:38]} h6 {[%clk 00:02:58]} {[%emt 00:00:52]} 34.
a6 {[%clk 00:00:36]} {[%emt 00:00:34]} Rb2 {[%clk 00:03:02]} {[%emt 00:00:26]}
35. Rxb2 {[%clk 00:00:58]} {[%emt 00:00:09]} Rxb2 {[%clk 00:03:31]} 36. Rc1
{[%clk 00:01:19]} {[%emt 00:00:09]} Rc2 {[%clk 00:03:01]} {[%emt 00:01:00]} 37.
Rb1 {[%clk 00:01:29]} {[%emt 00:00:21]} Ra2 {[%clk 00:03:20]} {[%emt 00:00:11]}
38. g3 {[%clk 00:01:09]} {[%emt 00:00:50]} Ne2 {[%clk 00:03:12]} {[%emt
00:00:37]} 0-1